bitfinex/quotes_SOLUSD_20250630
["timestamp","ask_amount","ask_price","bid_price","bid_amount"]
[1751298197991,0.1,157.5,157.37,36.0]
[1751298198154,0.1,157.5,157.44,43.06012219]
[1751298198466,0.1,157.5,157.38,0.91972789]
[1751298198467,0.1,157.5,157.49,17.06012219]
[1751298198858,0.1,157.5,157.47,6.35041595]
[1751298199062,0.1,157.5,157.49,17.06012219]
[1751298199271,0.1,157.5,157.48,17.06012219]
[1751298199464,0.1,157.5,157.49,17.06012219]
[1751298199666,0.1,157.5,157.43,6.35197319]
[1751298199974,23.50940064,157.5,157.44,17.06012219]
[1751298200183,17.06012219,157.49,157.44,17.06012219]
[1751298200482,17.06012219,157.49,157.43,17.06012219]
[1751298200680,0.1,157.5,157.44,17.06012219]
[1751298200851,0.1,157.5,157.49,17.06012219]
[1751298201554,0.1,157.5,157.49,35.70977105]
[1751298202364,0.1,157.5,157.49,43.06012219]
[1751298205381,17.34444533,157.39,157.33,17.06012219]
[1751298205570,17.06012219,157.38,157.33,17.06012219]
[1751298205768,17.06012219,157.36,157.31,17.06012219]
[1751298205975,0.28432314,157.39,157.31,17.06012219]
[1751298205976,17.06012219,157.37,157.31,17.06012219]
[1751298206175,17.06012219,157.36,157.3,17.06012219]
[1751298206373,0.28432314,157.36,157.25,6.35892341]
[1751298206577,17.34444533,157.32,157.26,17.06012219]
[1751298206777,17.34444533,157.32,157.25,17.06012219]
[1751298206778,23.41699715,157.31,157.25,17.06012219]
[1751298206974,23.41699715,157.31,157.18,6.36213258]
[1751298206975,33.32444533,157.3,157.24,17.06012219]
[1751298207167,33.32444533,157.3,157.18,6.36213258]
[1751298207168,17.06012219,157.29,157.23,17.06012219]
[1751298207380,17.06012219,157.28,157.22,17.06012219]
[1751298207674,17.06012219,157.24,157.16,0.2]
[1751298207979,15.98,157.3,157.16,6.56294014]
[1751298207980,28.6,157.23,157.16,6.56294014]
[1751298208483,28.6,157.23,157.16,22.4702957]
[1751298208693,28.6,157.23,157.19,26.0]
[1751298208864,28.6,157.23,157.2,6.36132315]
[1751298209072,28.6,157.23,157.21,17.06012219]
[1751298209269,28.6,157.23,157.2,17.06012219]
[1751298209469,28.6,157.23,157.21,17.06012219]
[1751298209659,28.6,157.23,157.22,17.06012219]
[1751298210758,28.6,157.23,157.22,23.42063611]
[1751298211989,28.6,157.23,157.22,17.06012219]
[1751298212300,28.6,157.23,157.22,49.42063611]
[1751298212502,28.6,157.23,157.22,68.07028497]
[1751298213271,15.98,157.3,157.25,26.0]
[1751298213499,15.98,157.3,157.29,17.06012219]
[1751298214404,26.0,157.27,157.17,0.63625373]
[1751298214701,17.06012219,157.21,157.16,0.2]
[1751298214866,6.36172784,157.19,157.16,0.2]
[1751298215380,17.06012219,157.23,157.17,17.06012219]
[1751298215696,17.06012219,157.22,157.16,17.26012219]
[1751298216068,17.06012219,157.2,157.16,0.2]
[1751298216369,17.06012219,157.19,157.16,0.2]
[1751298216697,17.06012219,157.17,157.16,0.2]
[1751298216992,16.0,157.17,157.16,0.2]
[1751298217486,16.0,157.17,157.16,17.26012219]
[1751298217790,16.0,157.17,157.16,0.2]
[1751298218863,39.7069827,157.17,157.15,0.2]
[1751298219067,0.14216157,157.14,157.06,0.2]
[1751298219287,17.06012219,157.07,157.06,0.2]
[1751298219593,40.16,157.1,157.06,0.2]
[1751298219796,17.06012219,157.08,157.06,0.2]
[1751298220168,16.0,157.07,157.06,0.2]
[1751298220985,15.7,157.11,157.06,23.62711569]
[1751298221289,15.7,157.11,157.1,17.06012219]
[1751298221495,12.9244,157.16,157.1,17.06012219]
[1751298221683,15.7,157.15,157.1,17.06012219]
[1751298221992,32.76012219,157.15,157.09,17.06012219]
[1751298222377,15.7,157.15,157.1,17.06012219]
[1751298222883,15.7,157.14,157.06,48.48447726]
[1751298223286,15.7,157.14,157.11,17.06012219]
[1751298223503,15.7,157.14,157.13,17.06012219]
[1751298223995,15.7,157.14,157.13,43.06012219]
[1751298224194,15.7,157.14,157.13,61.70977105]
[1751298224988,15.7,157.14,157.13,23.42427925]
[1751298225377,15.7,157.14,157.13,6.36415706]
[1751298225577,15.7,157.14,157.13,17.06012219]
[1751298226607,15.7,157.14,157.08,18.64964886]
[1751298226773,15.7,157.14,157.12,17.06012219]
[1751298226969,15.7,157.14,157.07,18.64964886]
[1751298227174,15.7,157.14,157.12,17.06012219]
[1751298227371,39.12388894,157.14,157.06,0.2]
[1751298227583,17.06012219,157.13,157.08,17.06012219]
[1751298227868,37.97314692,157.14,157.06,0.2]
[1751298228072,17.06012219,157.11,157.06,0.2]
[1751298228275,17.06012219,157.09,157.06,0.2]
[1751298228502,17.06012219,157.08,157.06,0.2]
[1751298228700,17.06012219,157.07,157.06,0.2]
[1751298228872,40.06,157.09,157.06,0.2]
[1751298228873,6.36618283,157.08,157.06,0.2]
[1751298229067,23.42630502,157.08,157.06,0.2]
[1751298229872,6.36618283,157.08,157.06,0.2]
[1751298230086,15.91274954,157.11,157.06,0.2]
[1751298230087,17.06012219,157.11,157.06,0.2]
[1751298230290,17.06012219,157.09,157.06,0.2]
[1751298230876,22.08546944,157.1,157.06,0.2]
[1751298231082,22.08546944,157.1,157.07,17.06012219]
[1751298231496,15.72,157.1,157.07,17.06012219]
[1751298231680,15.72,157.1,157.08,17.06012219]
[1751298232594,15.72,157.1,157.06,0.2]
[1751298232802,15.72,157.1,157.08,17.06012219]
[1751298233131,15.72,157.1,157.09,17.06012219]
[1751298233303,15.72,157.1,157.09,16.56012219]
[1751298233896,15.72,157.1,157.09,22.92589976]
[1751298234097,15.72,157.1,157.09,16.56012219]
[1751298234604,18.33302354,157.41,157.09,16.56012219]
[1751298234605,6.35623938,157.33,157.21,18.64964886]
[1751298234900,6.35717202,157.31,157.26,17.06012219]
[1751298235109,30.0,157.27,157.26,17.06012219]
[1751298235399,30.0,157.27,157.26,23.41901828]
[1751298235583,0.1,157.3,157.26,6.35889609]
[1751298235785,0.1,157.3,157.29,17.06012219]
[1751298236994,0.1,157.3,157.29,23.41780545]
[1751298237494,0.1,157.3,157.29,68.06745431]
[1751298238007,0.1,157.3,157.29,42.06745431]
[1751298238378,0.1,157.3,157.29,23.41780545]
[1751298238595,0.1,157.3,157.29,49.41780545]
[1751298238806,0.1,157.3,157.29,43.06012219]
[1751298239008,0.1,157.3,157.26,26.0]
[1751298239187,0.1,157.3,157.29,17.06012219]
[1751298240182,0.1,157.3,157.17,25.90586518]
[1751298240381,0.1,157.3,157.28,17.06012219]
[1751298240598,6.45740918,157.3,157.27,17.06012219]
[1751298240910,55.62,157.39,157.27,17.06012219]
[1751298240911,15.7,157.42,157.29,17.06012219]
[1751298241206,6.35283654,157.41,157.38,17.06012219]
[1751298241389,22.23492789,157.41,157.27,7.86707094]
[1751298241588,22.23492789,157.41,157.27,6.35849176]
[1751298241589,17.06012219,157.37,157.27,6.35849176]
[1751298241813,0.28432314,157.36,157.28,26.0]
[1751298241983,17.06012219,157.34,157.28,17.06012219]
[1751298242179,18.64964886,157.4,157.26,26.0]
[1751298242180,18.79181043,157.4,157.26,26.0]
[1751298242486,17.06012219,157.35,157.29,17.06012219]
[1751298242909,6.35525897,157.35,157.31,17.06012219]
[1751298243211,6.35525897,157.35,157.32,17.06012219]
[1751298243510,6.35525897,157.35,157.33,17.06012219]
[1751298244013,6.35525897,157.35,157.24,18.64964886]
[1751298244014,6.35525897,157.35,157.3,17.06012219]
[1751298244222,6.35525897,157.35,157.32,17.06012219]
[1751298244524,6.35525897,157.35,157.31,17.06012219]
[1751298244885,17.06012219,157.32,157.21,18.64964886]
[1751298245081,23.41618905,157.33,157.27,17.06012219]
[1751298245286,6.35606686,157.33,157.31,17.06012219]
[1751298246124,32.94444206,157.39,157.32,17.06012219]
[1751298246283,15.88431987,157.39,157.26,26.0]
[1751298246484,32.94444206,157.39,157.33,17.06012219]
[1751298246702,15.88431987,157.39,157.34,17.06012219]
[1751298246901,6.35404752,157.38,157.34,17.06012219]
[1751298247281,31.58167189,157.42,157.37,17.06012219]
[1751298247484,15.7,157.42,157.41,17.06012219]
[1751298247794,22.05243298,157.42,157.41,17.06012219]
[1751298248398,15.7,157.42,157.41,17.06012219]
[1751298248591,15.7,157.42,157.41,43.06012219]
[1751298248791,15.7,157.42,157.29,10.0]
[1751298249113,15.7,157.41,157.36,17.06012219]
[1751298249289,15.7,157.41,157.39,17.06012219]
[1751298249488,15.7,157.41,157.4,17.06012219]
[1751298249907,15.7,157.41,157.34,26.0]
[1751298250413,15.7,157.41,157.37,17.06012219]
[1751298250708,15.7,157.41,157.38,17.06012219]
[1751298250907,6.35324015,157.4,157.36,17.06012219]
[1751298251308,6.35324015,157.4,157.35,17.06012219]
[1751298251608,17.06012219,157.39,157.33,17.06012219]
[1751298252017,17.06012219,157.38,157.31,26.0]
[1751298252307,17.06012219,157.38,157.33,17.06012219]
[1751298252619,17.34444533,157.39,157.33,17.06012219]
[1751298252813,17.34444533,157.39,157.28,6.35796987]
[1751298252987,23.41416971,157.38,157.33,17.06012219]
[1751298253383,23.41416971,157.38,157.29,6.35757748]
[1751298253384,23.41416971,157.38,157.28,6.35772329]
[1751298253686,22.23916634,157.38,157.31,17.06012219]
[1751298253912,15.88268627,157.41,157.28,6.3579543]
[1751298254184,38.11217683,157.43,157.28,6.3579543]
[1751298254185,15.38,157.4,157.33,44.64964886]
[1751298254390,15.38,157.4,157.39,17.06012219]
[1751298255126,15.38,157.4,157.39,49.413766]
[1751298255420,15.38,157.4,157.39,68.06341486]
[1751298255815,15.38,157.4,157.39,49.413766]
[1751298256015,28.62,157.44,157.42,26.0]
[1751298256215,28.62,157.44,157.43,17.06012219]
[1751298256832,28.62,157.44,157.42,17.06012219]
[1751298257008,17.06012219,157.43,157.37,17.06012219]
[1751298257196,23.41255517,157.42,157.36,17.06012219]
[1751298257398,6.35243298,157.42,157.37,17.06012219]
[1751298257599,6.35243298,157.42,157.38,17.06012219]
[1751298257926,6.35213776,157.43,157.39,17.06012219]
[1751298258095,28.62,157.44,157.36,26.0]
[1751298258423,45.68012219,157.44,157.38,17.06012219]
[1751298258636,45.68012219,157.44,157.36,26.0]
[1751298258794,17.06012219,157.43,157.37,17.06012219]
[1751298258994,17.06012219,157.43,157.38,17.06012219]
[1751298258995,6.35243298,157.42,157.38,17.06012219]
[1751298259299,39.29363762,157.42,157.36,17.06012219]
[1751298259507,39.29363762,157.42,157.3,15.89254689]
[1751298259508,17.06012219,157.41,157.31,6.35687496]
[1751298259812,17.06012219,157.41,157.35,17.06012219]
[1751298260118,6.35243298,157.42,157.37,17.06012219]
[1751298260316,6.35243298,157.42,157.34,26.0]
[1751298260506,6.35243298,157.42,157.26,6.35889609]
[1751298260507,17.06012219,157.37,157.26,6.35889609]
[1751298260716,15.36,157.36,157.32,17.06012219]
[1751298261126,15.36,157.36,157.28,26.0]
[1751298261127,6.35525897,157.35,157.31,17.06012219]
[1751298261435,6.35525897,157.35,157.26,15.89724023]
[1751298261436,22.24340641,157.35,157.27,17.06012219]
[1751298261728,22.24340641,157.35,157.29,17.06012219]
[1751298261729,39.3035286,157.35,157.29,17.06012219]
[1751298262030,17.06012219,157.3,157.17,15.90588423]
[1751298262233,17.06012219,157.28,157.22,17.06012219]
[1751298262598,13.32712314,157.31,157.22,17.06012219]
[1751298262599,17.06012219,157.27,157.22,17.06012219]
[1751298262795,17.06012219,157.28,157.22,17.06012219]
[1751298262999,6.35849176,157.27,157.23,17.06012219]
[1751298263233,6.35849176,157.27,157.22,17.06012219]
[1751298263532,23.41861395,157.27,157.21,17.06012219]
[1751298263733,34.97849176,157.27,157.22,17.06012219]
[1751298264028,52.03861395,157.27,157.21,17.06012219]
[1751298264328,28.62,157.27,157.25,17.06012219]
[1751298264509,28.62,157.27,157.26,17.06012219]
[1751298265012,28.62,157.27,157.25,17.06012219]
[1751298265213,28.62,157.27,157.26,17.06012219]
[1751298266534,34.97853692,157.27,157.22,0.2]
[1751298266711,34.97853692,157.27,157.22,17.26012219]
[1751298267034,28.62,157.27,157.23,17.06012219]
[1751298267248,28.62,157.27,157.24,17.06012219]
[1751298267837,28.62,157.27,157.22,0.2]
[1751298267838,52.03888209,157.27,157.22,0.2]
[1751298268017,17.06012219,157.25,157.22,0.2]
[1751298268221,17.06012219,157.24,157.22,0.2]
[1751298268417,34.9787599,157.27,157.22,0.2]
[1751298268610,17.06012219,157.23,157.22,0.2]
[1751298268813,17.34444533,157.23,157.22,0.2]
[1751298269207,17.34444533,157.23,157.16,16.96012219]
[1751298269208,23.70455472,157.23,157.16,16.96012219]
[1751298269431,17.06012219,157.22,157.16,16.96012219]
[1751298269614,17.06012219,157.2,157.15,17.06012219]
[1751298269817,12.80485545,157.22,157.16,12.80485545]
[1751298270229,6.36010939,157.23,157.13,6.5640968]
[1751298270410,6.36010939,157.23,157.15,26.0]
[1751298270611,6.36010939,157.23,157.18,12.80485545]
[1751298271132,6.36010939,157.23,157.19,12.80485545]
[1751298271549,19.16496484,157.23,157.14,26.0]
[1751298271745,12.80485545,157.21,157.16,12.80485545]
[1751298272925,12.80485545,157.19,157.13,13.00485545]
[1751298273116,19.16820257,157.15,157.13,0.2]
[1751298273311,15.38,157.14,157.13,0.2]
[1751298273724,15.38,157.14,157.13,13.00485545]
[1751298273935,15.38,157.14,157.13,0.2]
[1751298274139,15.38,157.14,157.13,13.00485545]
[1751298275025,15.38,157.14,157.13,19.36901251]
[1751298275743,15.38,157.14,157.13,0.2]
[1751298275920,21.74375206,157.14,157.13,0.2]
[1751298276422,34.54860751,157.14,157.13,0.2]
[1751298277141,15.38,157.14,157.13,0.2]
[1751298277517,10.0,157.06,156.99,0.2]
[1751298277743,12.80485545,157.0,156.99,0.2]
[1751298277951,26.0,156.97,156.96,0.2]
[1751298278246,26.0,156.97,156.92,0.2]
[1751298278247,26.0,156.93,156.92,0.2]
[1751298278552,4.4011,156.95,156.84,12.80485545]
[1751298278849,4.4011,156.95,156.79,10.0]
[1751298279015,4.4011,156.95,156.78,10.0]
[1751298279224,4.4011,156.95,156.77,0.63787714]
[1751298279225,22.30151649,156.94,156.77,10.0]
[1751298279540,12.80485545,156.9,156.87,0.2]
[1751298279921,17.16750716,156.9,156.87,0.2]
[1751298280247,35.81715602,156.88,156.87,0.2]
[1751298280726,17.16750716,156.88,156.87,0.2]
[1751298281120,36.10147916,156.88,156.87,0.2]
[1751298281333,36.10147916,156.88,156.69,15.02692447]
[1751298281334,44.933972,156.87,156.69,15.02692447]
[1751298281513,17.16750716,156.79,156.73,17.16750716]
[1751298281932,0.28432314,156.85,156.71,26.0]
[1751298281933,17.16750716,156.8,156.71,26.0]
[1751298282143,17.16750716,156.78,156.7,7.70530394]
[1751298282343,17.16750716,156.78,156.73,17.16750716]
[1751298282543,17.16750716,156.78,156.72,17.16750716]
[1751298282714,39.34,156.8,156.7,1.3237961]
[1751298282917,39.34,156.8,156.73,17.16750716]
[1751298283148,6.37836458,156.78,156.73,17.16750716]
[1751298283342,6.37797864,156.79,156.72,17.16750716]
[1751298283647,31.85930929,156.94,156.7,1.3237961]
[1751298283648,18.64964886,156.84,156.7,1.3237961]
[1751298283817,17.16750716,156.77,156.7,1.3237961]
[1751298284017,17.16750716,156.74,156.7,1.3237961]
[1751298284943,80.19194181,156.85,156.73,17.16750716]
[1751298285121,23.54546493,156.79,156.7,1.3237961]
[1751298285447,17.16750716,156.75,156.71,0.2]
[1751298285682,17.16750716,156.76,156.71,0.2]
[1751298285823,23.54546493,156.79,156.71,0.2]
[1751298286029,15.06,156.81,156.74,17.16750716]
[1751298286333,32.22750716,156.81,156.75,17.16750716]
[1751298286540,15.06,156.81,156.76,17.16750716]
[1751298286725,15.06,156.81,156.71,0.2]
[1751298286726,15.06,156.81,156.78,17.16750716]
[1751298286917,15.06,156.81,156.8,17.16750716]
[1751298287450,15.06,156.81,156.72,10.0]
[1751298287451,15.06,156.81,156.78,17.16750716]
[1751298287646,15.06,156.81,156.75,26.0]
[1751298287647,21.43724726,156.81,156.75,26.0]
[1751298287850,38.60475442,156.81,156.72,6.38080653]
[1751298288031,38.60475442,156.81,156.71,0.2]
[1751298288032,38.60475442,156.81,156.75,17.16750716]
[1751298288348,38.60475442,156.81,156.71,32.58119226]
[1751298288349,15.06,156.81,156.77,17.16750716]
[1751298288567,32.22750716,156.81,156.71,32.58119226]
[1751298288849,32.22750716,156.81,156.76,17.16750716]
[1751298289028,15.06,156.81,156.76,17.16750716]
[1751298289229,15.06,156.81,156.78,17.16750716]
[1751298289758,15.06,156.81,156.8,17.16750716]
[1751298290150,15.06,156.81,156.76,26.0]
[1751298290348,15.06,156.81,156.78,17.16750716]
[1751298290675,15.06,156.81,156.79,17.16750716]
[1751298290972,15.06,156.81,156.8,17.16750716]
[1751298291173,41.9171,156.88,156.81,6.37714431]
[1751298291345,41.9171,156.88,156.85,17.16750716]
[1751298291544,35.03434235,156.88,156.84,17.16750716]
[1751298291854,52.20184951,156.88,156.83,17.16750716]
[1751298292031,35.03434235,156.88,156.83,17.16750716]
[1751298292435,35.03434235,156.88,156.84,17.16750716]
[1751298293055,35.03434235,156.88,156.85,17.16750716]
[1751298293056,28.66,156.88,156.85,17.16750716]
[1751298293259,28.66,156.88,156.86,17.16750716]
[1751298293774,35.03439509,156.88,156.74,18.64964886]
[1751298294062,17.16750716,156.86,156.8,17.16750716]
[1751298294271,12.9531,156.94,156.85,17.16750716]
[1751298294485,5.03298326,157.07,157.01,10.0]
[1751298294757,4.4332,157.22,157.06,17.16750716]
[1751298294758,5.09019468,157.2,157.06,17.16750716]
[1751298294962,17.16750716,157.17,157.1,17.16750716]
[1751298295135,17.16750716,157.16,157.09,16.78550716]
[1751298295339,10.0,157.14,156.99,6.36983247]
[1751298295543,17.16750716,157.1,156.99,6.36983247]
[1751298295765,32.22750716,157.09,156.99,6.36983247]
[1751298296057,15.06,157.09,157.06,17.16750716]
[1751298296361,15.06,157.09,157.03,26.0]
[1751298296577,15.06,157.09,157.08,17.16750716]
[1751298296871,17.16750716,157.16,157.01,26.0]
[1751298297080,17.16750716,157.14,157.08,17.16750716]
[1751298297267,21.42354217,157.15,157.09,17.16750716]
[1751298297471,38.59104933,157.15,157.09,17.16750716]
[1751298297670,21.42354217,157.15,157.09,17.16750716]
[1751298297877,38.59104933,157.15,157.08,17.16750716]
[1751298298066,38.59104933,157.15,157.0,32.36942675]
[1751298298067,17.16750716,157.12,157.0,32.36942675]
[1751298298376,17.4518303,157.14,157.08,17.16750716]
[1751298298571,15.06,157.15,157.11,17.16750716]
[1751298298756,38.59086414,157.15,157.09,17.16750716]
[1751298298956,35.81715602,157.14,157.0,6.36942675]
[1751298299158,37.3319249,157.15,157.05,17.16750716]
[1751298299385,17.16750716,157.13,157.07,17.16750716]
[1751298299882,6.36375206,157.14,157.07,17.16750716]
[1751298300062,17.16750716,157.12,157.06,17.16750716]
[1751298300268,17.16750716,157.11,157.05,17.16750716]
[1751298300782,17.16750716,157.1,157.05,17.16750716]
[1751298301276,17.16750716,157.11,157.05,17.16750716]
[1751298301478,15.06,157.15,157.08,17.16750716]
[1751298301674,17.16750716,157.13,157.07,17.16750716]
[1751298301876,12.81907125,157.13,157.07,12.81907125]
[1751298302091,12.81907125,157.12,157.06,12.81907125]
[1751298302257,12.81907125,157.12,157.01,6.36902108]
[1751298302458,12.81907125,157.12,157.06,12.81907125]
[1751298302791,12.81907125,157.11,157.06,12.81907125]
[1751298303002,4.3451,157.3,157.14,26.0]
[1751298303281,4.3451,157.3,157.11,26.0]
[1751298303282,6.46030671,157.23,157.11,26.0]
[1751298303489,6.46030671,157.23,157.08,12.81907125]
[1751298303490,26.0,157.18,157.1,12.81907125]
[1751298303692,26.0,157.18,157.08,12.81907125]
[1751298303693,28.68,157.17,157.08,12.81907125]
[1751298303865,28.68,157.17,157.05,18.64964886]
[1751298304056,28.68,157.17,157.08,12.81907125]
[1751298304257,28.68,157.17,157.14,12.81907125]
[1751298304580,28.68,157.17,157.15,12.81907125]
[1751298304969,28.68,157.17,157.16,12.81907125]
[1751298305280,28.68,157.17,157.15,12.81907125]
[1751298305484,28.78,157.17,157.15,12.81907125]
[1751298305660,28.78,157.17,157.16,12.81907125]
[1751298308778,28.78,157.17,157.07,15.91617237]
[1751298309074,28.78,157.17,157.05,18.64964886]
[1751298309075,35.14264358,157.17,157.05,18.64964886]
[1751298309281,28.78,157.17,157.16,12.81907125]
[1751298310087,0.1,157.17,157.16,12.81907125]
[1751298310271,0.1,157.17,157.13,44.64964886]
[1751298310460,0.1,157.17,157.16,12.81907125]
[1751298311082,0.1,157.17,157.16,19.18201347]
[1751298311285,0.1,157.17,157.16,37.83166233]
[1751298311586,0.1,157.23,157.2,26.0]
[1751298311880,0.1,157.23,157.22,12.81907125]
[1751298312182,0.1,157.23,157.13,15.91000155]
[1751298312484,6.46038289,157.23,157.21,12.81907125]
[1751298312784,0.1,157.23,157.22,12.81907125]
[1751298313158,0.1,157.3,157.25,26.0]
[1751298313367,0.1,157.4,157.33,26.0]
[1751298313666,0.1,157.4,157.38,12.81907125]
[1751298314480,0.1,157.4,157.38,38.81907125]
[1751298314671,0.1,157.4,157.39,12.81907125]
[1751298315721,0.1,157.4,157.39,18.64964886]
[1751298315881,0.1,157.4,157.39,12.81907125]
[1751298316264,0.1,157.45,157.39,31.46872011]
[1751298316465,0.1,157.45,157.44,12.81907125]
[1751298316894,21.07008836,157.48,157.44,12.81907125]
[1751298316895,0.3775747,157.54,157.44,51.6381425]
[1751298317184,0.3775747,157.54,157.49,26.0]
[1751298317483,0.3775747,157.54,157.38,13.09850475]
[1751298317484,0.3775747,157.54,157.53,12.81907125]
[1751298317885,6.72516896,157.54,157.53,12.81907125]
[1751298318197,6.72516896,157.54,157.51,12.81907125]
[1751298318367,6.72516896,157.54,157.5,12.81907125]
[1751298318568,22.59415461,157.54,157.5,12.81907125]
[1751298318780,6.72516896,157.54,157.52,12.81907125]
[1751298319086,35.41322586,157.54,157.49,12.81907125]
[1751298319296,6.72516896,157.54,157.44,26.0]
[1751298319586,6.72516896,157.54,157.53,12.81907125]
[1751298319976,0.3775747,157.54,157.53,12.81907125]
[1751298320773,6.72516896,157.54,157.53,12.81907125]
[1751298321178,6.72516896,157.54,157.47,26.0]
[1751298321374,6.72516896,157.54,157.52,12.81907125]
[1751298321583,0.3775747,157.54,157.53,12.81907125]
[1751298323093,0.2,157.6,157.56,26.0]
[1751298323292,0.2,157.6,157.59,12.81907125]
[1751298323493,0.2,157.6,157.56,26.0]
[1751298323668,0.2,157.6,157.59,12.81907125]
[1751298324488,48.76,157.72,157.59,12.81907125]
[1751298324489,21.835,157.73,157.62,26.0]
[1751298324695,4.57405227,157.77,157.75,26.0]
[1751298324997,7.83428406,157.9,157.81,26.0]
[1751298325181,7.83428406,157.9,157.88,12.81907125]
[1751298325369,7.83428406,157.9,157.84,26.0]
[1751298325567,1.127539,157.93,157.87,26.0]
[1751298325892,1.127539,157.93,157.88,26.0]
[1751298326082,1.127539,157.93,157.86,18.64964886]
[1751298326394,1.3391875,157.93,157.88,26.0]
[1751298326592,1.3391875,157.93,157.85,6.33512828]
[1751298326799,1.3391875,157.93,157.83,15.8390125]
[1751298326800,1.3391875,157.93,157.9,12.81907125]
[1751298327092,1.3391875,157.93,157.84,32.33550838]
[1751298327093,1.3391875,157.93,157.92,12.81907125]
[1751298327578,1.3391875,157.93,157.89,26.0]
[1751298327894,7.67116715,157.93,157.77,10.0]
[1751298328209,7.67116715,157.93,157.9,16.93173919]
[1751298328210,1.3391875,157.93,157.9,16.93173919]
[1751298328797,14.68,157.92,157.87,16.93173919]
[1751298328996,16.93173919,157.91,157.77,6.3383206]
[1751298329300,6.33432571,157.87,157.82,16.93173919]
[1751298329593,16.93173919,157.86,157.8,16.93173919]
[1751298329793,16.93173919,157.86,157.7,16.93173919]
[1751298329794,22.17013998,157.87,157.7,16.93173919]
[1751298330095,6.33432571,157.87,157.82,16.93173919]
[1751298330298,44.8295,157.92,157.71,0.6340752]
[1751298330299,6.33265432,157.92,157.86,16.93173919]
[1751298330483,6.33265432,157.92,157.89,16.93173919]
[1751298330798,6.33265432,157.92,157.75,10.0]
[1751298330799,7.67130051,157.93,157.9,16.93173919]
[1751298331002,7.67130051,157.93,157.86,16.93173919]
[1751298331003,16.93173919,157.92,157.86,16.93173919]
[1751298331297,16.93173919,157.91,157.85,16.93173919]
[1751298331484,6.33312222,157.9,157.85,16.93173919]
[1751298331796,23.26486141,157.9,157.84,16.93173919]
[1751298331987,6.33312222,157.9,157.85,16.93173919]
[1751298332301,22.16592779,157.9,157.86,16.93173919]
[1751298332504,22.16592779,157.9,157.81,26.0]
[1751298332710,39.09766698,157.9,157.81,26.0]
[1751298332884,16.93173919,157.89,157.83,16.93173919]
[1751298333082,16.93173919,157.87,157.81,16.93173919]
[1751298333281,31.61173919,157.88,157.82,16.93173919]
[1751298333577,6.33432571,157.87,157.84,16.93173919]
[1751298333891,14.68,157.88,157.83,26.0]
[1751298334084,21.0140236,157.88,157.85,16.93173919]
[1751298334288,21.0140236,157.88,157.83,26.0]
[1751298334499,14.68,157.88,157.86,16.93173919]
[1751298334702,18.27092669,157.93,157.87,16.93173919]
[1751298334703,6.33232016,157.92,157.87,16.93173919]
[1751298335010,6.33232016,157.92,157.82,18.64964886]
[1751298335011,6.33232016,157.92,157.88,16.93173919]
[1751298335691,7.67113702,157.93,157.91,16.93173919]
[1751298335892,7.67113702,157.93,157.9,16.93173919]
[1751298336207,1.3391875,157.93,157.86,0.28432314]
[1751298336407,1.3391875,157.93,157.92,16.93173919]
[1751298337211,1.3391875,157.93,157.92,35.58138805]
[1751298337508,1.3391875,157.93,157.92,41.91370821]
[1751298337710,1.3391875,157.93,157.92,42.19803135]
[1751298338093,1.3391875,157.93,157.92,35.86571119]
[1751298338296,1.3391875,157.93,157.92,26.0]
[1751298338611,1.3391875,157.93,157.92,16.93173919]
[1751298339212,7.6711067,157.93,157.91,16.93173919]
[1751298339417,7.6711067,157.93,157.89,16.93173919]
[1751298339623,7.6711067,157.93,157.81,6.33635813]
[1751298340088,7.6711067,157.93,157.89,16.93173919]
[1751298340526,24.60284589,157.93,157.8,6.97084523]
[1751298340815,16.93173919,157.92,157.86,16.93173919]
[1751298341221,0.2116485,157.92,157.88,16.93173919]
[1751298341422,6.33272117,157.91,157.87,16.93173919]
[1751298341715,22.16452409,157.91,157.87,16.93173919]
[1751298341914,22.16452409,157.91,157.86,16.93173919]
[1751298342115,22.16452409,157.91,157.82,16.93173919]
[1751298342415,14.42,157.9,157.82,16.93173919]
[1751298342617,14.42,157.9,157.86,16.93173919]